[Event "Titled Tuesday Blitz January 17 Late 2023"]
[White "Weetik, Vjacheslav"]
[Black "Mazurkiewicz, Michal"]
[WhiteFideId "4153472"]
[BlackFideId "1124943"]
[WhiteElo "2423"]
[BlackElo "2145"]
[Result "1-0"]
[Round "02"]
[TimeControl "180+2"]
[Date "2023.01.17"]
[WhiteClock "0:00:57"]
[BlackClock "0:00:03"]

1. d4 {[%clk 0:02:59]}  Nf6 {[%clk 0:02:59]} 2. Nf3 {[%clk 0:03:00]}  g6 {[%clk 0:03:00]} 3. Bg5 {[%clk 0:03:00]}  Bg7 {[%clk 0:03:00]} 4. c3 {[%clk 0:03:00]}  h6 {[%clk 0:02:59]} 5. Bh4 {[%clk 0:03:00]}  O-O {[%clk 0:02:59]} 6. Nbd2 {[%clk 0:03:00]}  d5 {[%clk 0:02:59]} 7. e3 {[%clk 0:03:00]}  c6 {[%clk 0:02:59]} 8. Be2 {[%clk 0:02:58]}  Bf5 {[%clk 0:02:58]} 9. Qb3 {[%clk 0:02:54]}  Qb6 {[%clk 0:02:58]} 10. O-O {[%clk 0:02:53]}  Nbd7 {[%clk 0:02:56]} 11. h3 {[%clk 0:02:50]}  g5 {[%clk 0:02:52]} 12. Bg3 {[%clk 0:02:50]}  Ne4 {[%clk 0:02:52]} 13. Nxe4 {[%clk 0:02:50]}  Bxe4 {[%clk 0:02:53]} 14. Nd2 {[%clk 0:02:42]}  e5 {[%clk 0:02:42]} 15. Nxe4 {[%clk 0:02:42]}  dxe4 {[%clk 0:02:43]} 16. Rfd1 {[%clk 0:02:17]}  Qxb3 {[%clk 0:02:36]} 17. axb3 {[%clk 0:02:17]}  f5 {[%clk 0:02:36]} 18. Bc4+ {[%clk 0:02:11]}  Kh8 {[%clk 0:02:25]} 19. Be6 {[%clk 0:01:43]}  f4 {[%clk 0:02:06]} 20. Bxd7 {[%clk 0:01:40]}  fxg3 {[%clk 0:02:06]} 21. fxg3 {[%clk 0:01:41]}  exd4 {[%clk 0:01:58]} 22. cxd4 {[%clk 0:01:39]}  a6 {[%clk 0:01:57]} 23. Rf1 {[%clk 0:01:33]}  Rad8 {[%clk 0:01:43]} 24. Rxf8+ {[%clk 0:01:32]}  Rxf8 {[%clk 0:01:43]} 25. Rf1 {[%clk 0:01:32]}  Rxf1+ {[%clk 0:01:24]} 26. Kxf1 {[%clk 0:01:32]}  c5 {[%clk 0:01:24]} 27. dxc5 {[%clk 0:01:30]}  Bxb2 {[%clk 0:01:24]} 28. Bc8 {[%clk 0:01:29]}  Ba3 {[%clk 0:01:20]} 29. Bxb7 {[%clk 0:01:27]}  Bxc5 {[%clk 0:01:19]} 30. Bxa6 {[%clk 0:01:14]}  Bxe3 {[%clk 0:01:19]} 31. Bb7 {[%clk 0:01:15]}  Kg7 {[%clk 0:01:17]} 32. Ke2 {[%clk 0:01:13]}  Bg1 {[%clk 0:01:07]} 33. Bxe4 {[%clk 0:01:12]}  Kf6 {[%clk 0:01:05]} 34. Kd3 {[%clk 0:01:11]}  Ke5 {[%clk 0:01:05]} 35. Bf3 {[%clk 0:01:06]}  Bh2 {[%clk 0:00:49]} 36. g4 {[%clk 0:01:06]}  Kd6 {[%clk 0:00:50]} 37. Ke4 {[%clk 0:01:06]}  Ke6 {[%clk 0:00:30]} 38. b4 {[%clk 0:01:05]}  Bd6 {[%clk 0:00:18]} 39. b5 {[%clk 0:01:05]}  Kd7 {[%clk 0:00:15]} 40. Kf5 {[%clk 0:01:02]}  Kc7 {[%clk 0:00:14]} 41. Kg6 {[%clk 0:01:03]}  Bf8 {[%clk 0:00:14]} 42. Kf7 {[%clk 0:01:03]}  Bd6 {[%clk 0:00:14]} 43. Kg7 {[%clk 0:01:04]}  Kb6 {[%clk 0:00:11]} 44. Be2 {[%clk 0:00:58]}  Be7 {[%clk 0:00:04]} 45. Kxh6 {[%clk 0:00:58]}  Bd8 {[%clk 0:00:05]} 46. Kh5 {[%clk 0:00:57]}  Be7 {[%clk 0:00:05]} 47. g3 {[%clk 0:00:57]}  Bd6 {[%clk 0:00:03]} 48. Kxg5 {[%clk 0:00:57]}  Bxg3 {[%clk 0:00:03]} 49. h4 {[%clk 0:00:57]}  Be5 {[%clk 0:00:03]} 50. Kg6 {[%clk 0:00:56]}  Kc5 {[%clk 0:00:02]} 51. g5 {[%clk 0:00:57]}  Kd4 {[%clk 0:00:03]} 52. Kf7 {[%clk 0:00:55]}  Ke3 {[%clk 0:00:03]} 53. g6 {[%clk 0:00:56]}  Kxe2 {[%clk 0:00:03]} 54. g7 {[%clk 0:00:56]}  Bxg7 {[%clk 0:00:03]} 55. Kxg7 {[%clk 0:00:57]} 1-0


[Site "https://www.chess.com"]

[Event "Titled Tuesday Blitz January 17 Late 2023"]
[White "Ovezdurdyyeva, Jemal"]
[Black "Aggelis, Nikolaos"]
[WhiteFideId "14001888"]
[BlackFideId "4213220"]
[WhiteElo "2078"]
[BlackElo "2270"]
[Result "0-1"]
[Round "02"]
[TimeControl "180+2"]
[Date "2023.01.17"]
[WhiteClock "0:00:15"]
[BlackClock "0:00:18"]

1. e4 {[%clk 0:03:00]}  c6 {[%clk 0:02:59]} 2. d4 {[%clk 0:03:00]}  d5 {[%clk 0:02:59]} 3. Nd2 {[%clk 0:03:01]}  dxe4 {[%clk 0:02:57]} 4. Nxe4 {[%clk 0:03:01]}  Nd7 {[%clk 0:02:55]} 5. Nf3 {[%clk 0:03:01]}  Ngf6 {[%clk 0:02:55]} 6. Bd3 {[%clk 0:03:00]}  Nxe4 {[%clk 0:02:53]} 7. Bxe4 {[%clk 0:03:00]}  Nf6 {[%clk 0:02:53]} 8. Bd3 {[%clk 0:03:00]}  Bg4 {[%clk 0:02:52]} 9. h3 {[%clk 0:03:00]}  Bh5 {[%clk 0:02:50]} 10. Be2 {[%clk 0:02:58]}  e6 {[%clk 0:02:48]} 11. O-O {[%clk 0:02:57]}  Be7 {[%clk 0:02:47]} 12. c4 {[%clk 0:02:57]}  O-O {[%clk 0:02:43]} 13. Be3 {[%clk 0:02:56]}  Qc7 {[%clk 0:02:42]} 14. Ne5 {[%clk 0:02:56]}  Bxe2 {[%clk 0:02:38]} 15. Qxe2 {[%clk 0:02:57]}  Nd7 {[%clk 0:02:36]} 16. Nd3 {[%clk 0:02:50]}  Bf6 {[%clk 0:02:35]} 17. Rfd1 {[%clk 0:02:42]}  Rad8 {[%clk 0:02:25]} 18. Rac1 {[%clk 0:02:30]}  Rfe8 {[%clk 0:02:13]} 19. Qf3 {[%clk 0:02:22]}  e5 {[%clk 0:02:07]} 20. dxe5 {[%clk 0:02:21]}  Nxe5 {[%clk 0:02:07]} 21. Nxe5 {[%clk 0:02:22]}  Qxe5 {[%clk 0:02:03]} 22. b3 {[%clk 0:02:15]}  Qa5 {[%clk 0:01:52]} 23. Rc2 {[%clk 0:01:45]}  Rxd1+ {[%clk 0:01:49]} 24. Qxd1 {[%clk 0:01:44]}  Rd8 {[%clk 0:01:49]} 25. Rd2 {[%clk 0:01:44]}  Rxd2 {[%clk 0:01:45]} 26. Qxd2 {[%clk 0:01:44]}  Qxd2 {[%clk 0:01:45]} 27. Bxd2 {[%clk 0:01:45]}  Bd4 {[%clk 0:01:43]} 28. Kf1 {[%clk 0:01:39]}  f5 {[%clk 0:01:43]} 29. Ke2 {[%clk 0:01:38]}  Kf7 {[%clk 0:01:42]} 30. Be3 {[%clk 0:01:38]}  Bxe3 {[%clk 0:01:34]} 31. Kxe3 {[%clk 0:01:39]}  c5 {[%clk 0:01:30]} 32. f4 {[%clk 0:01:24]}  Kg6 {[%clk 0:01:25]} 33. Kf3 {[%clk 0:01:22]}  Kh5 {[%clk 0:01:21]} 34. Kg3 {[%clk 0:01:21]}  b6 {[%clk 0:01:14]} 35. Kf3 {[%clk 0:01:18]}  Kh4 {[%clk 0:01:13]} 36. Kf2 {[%clk 0:01:18]}  h6 {[%clk 0:01:06]} 37. Kf3 {[%clk 0:01:17]}  g6 {[%clk 0:01:01]} 38. Kf2 {[%clk 0:01:16]}  g5 {[%clk 0:00:59]} 39. fxg5 {[%clk 0:01:15]}  hxg5 {[%clk 0:00:50]} 40. Kf3 {[%clk 0:01:14]}  f4 {[%clk 0:00:39]} 41. Kf2 {[%clk 0:00:57]}  g4 {[%clk 0:00:38]} 42. hxg4 {[%clk 0:00:56]}  Kxg4 {[%clk 0:00:38]} 43. Ke2 {[%clk 0:00:57]}  Kg3 {[%clk 0:00:38]} 44. Kf1 {[%clk 0:00:57]}  a5 {[%clk 0:00:30]} 45. Kg1 {[%clk 0:00:49]}  f3 {[%clk 0:00:29]} 46. gxf3 {[%clk 0:00:48]}  Kxf3 {[%clk 0:00:30]} 47. Kf1 {[%clk 0:00:48]}  Ke3 {[%clk 0:00:30]} 48. Ke1 {[%clk 0:00:48]}  Kd3 {[%clk 0:00:30]} 49. Kd1 {[%clk 0:00:48]}  a4 {[%clk 0:00:24]} 50. bxa4 {[%clk 0:00:19]}  Kxc4 {[%clk 0:00:25]} 51. a5 {[%clk 0:00:16]}  bxa5 {[%clk 0:00:24]} 52. Kc2 {[%clk 0:00:16]}  a4 {[%clk 0:00:22]} 53. Kb2 {[%clk 0:00:15]}  Kd3 {[%clk 0:00:21]} 54. Kc1 {[%clk 0:00:15]}  c4 {[%clk 0:00:18]} 55. Kb2 {[%clk 0:00:15]}  Kd2 {[%clk 0:00:18]} 0-1


[Site "https://www.chess.com"]

[Event "Titled Tuesday Blitz January 17 Late 2023"]
[White "Dylag, Emilia"]
[Black "Yurovskykh, Oleksandr"]
[WhiteFideId "21805172"]
[BlackFideId "14134020"]
[WhiteElo "2095"]
[BlackElo "2328"]
[Result "1-0"]
[Round "02"]
[TimeControl "180+2"]
[Date "2023.01.17"]
[WhiteClock "0:00:13"]
[BlackClock "0:00:05"]

1. d4 {[%clk 0:02:54]}  Nf6 {[%clk 0:02:58]} 2. c4 {[%clk 0:02:54]}  e6 {[%clk 0:02:58]} 3. g3 {[%clk 0:02:54]}  Bb4+ {[%clk 0:02:56]} 4. Bd2 {[%clk 0:02:53]}  Be7 {[%clk 0:02:56]} 5. Bg2 {[%clk 0:02:53]}  d5 {[%clk 0:02:55]} 6. Nf3 {[%clk 0:02:53]}  O-O {[%clk 0:02:55]} 7. O-O {[%clk 0:02:53]}  c6 {[%clk 0:02:56]} 8. Qc2 {[%clk 0:02:52]}  Nbd7 {[%clk 0:02:54]} 9. b3 {[%clk 0:02:52]}  b6 {[%clk 0:02:53]} 10. Nc3 {[%clk 0:02:52]}  Bb7 {[%clk 0:02:54]} 11. e4 {[%clk 0:02:53]}  dxe4 {[%clk 0:02:37]} 12. Nxe4 {[%clk 0:02:53]}  Nxe4 {[%clk 0:02:33]} 13. Qxe4 {[%clk 0:02:54]}  Nf6 {[%clk 0:02:33]} 14. Qe2 {[%clk 0:02:53]}  c5 {[%clk 0:02:34]} 15. dxc5 {[%clk 0:02:33]}  Bxc5 {[%clk 0:02:35]} 16. Rad1 {[%clk 0:02:26]}  Qe7 {[%clk 0:02:33]} 17. Ne5 {[%clk 0:02:19]}  Bxg2 {[%clk 0:02:33]} 18. Kxg2 {[%clk 0:02:19]}  Nd7 {[%clk 0:02:02]} 19. Nxd7 {[%clk 0:01:49]}  Qxd7 {[%clk 0:02:03]} 20. b4 {[%clk 0:01:45]}  Be7 {[%clk 0:01:50]} 21. f3 {[%clk 0:01:44]}  Rfd8 {[%clk 0:01:44]} 22. Bg5 {[%clk 0:01:37]}  Qb7 {[%clk 0:01:37]} 23. Bxe7 {[%clk 0:01:36]}  Qxe7 {[%clk 0:01:38]} 24. a3 {[%clk 0:01:34]}  g6 {[%clk 0:01:37]} 25. Rxd8+ {[%clk 0:01:27]}  Rxd8 {[%clk 0:01:38]} 26. Rd1 {[%clk 0:01:26]}  Rc8 {[%clk 0:01:34]} 27. Qe4 {[%clk 0:01:09]}  Qc7 {[%clk 0:01:31]} 28. Rc1 {[%clk 0:01:06]}  Rd8 {[%clk 0:01:24]} 29. Rc2 {[%clk 0:01:02]}  Rd1 {[%clk 0:01:20]} 30. c5 {[%clk 0:00:59]}  bxc5 {[%clk 0:01:21]} 31. bxc5 {[%clk 0:01:00]}  h5 {[%clk 0:00:58]} 32. c6 {[%clk 0:00:57]}  Qb6 {[%clk 0:00:57]} 33. c7 {[%clk 0:00:51]}  Qg1+ {[%clk 0:00:44]} 34. Kh3 {[%clk 0:00:51]}  Qf1+ {[%clk 0:00:45]} 35. Kh4 {[%clk 0:00:44]}  g5+ {[%clk 0:00:04]} 36. Kxg5 {[%clk 0:00:31]}  Kg7 {[%clk 0:00:04]} 37. Qe5+ {[%clk 0:00:24]}  Kh7 {[%clk 0:00:05]} 38. c8=Q {[%clk 0:00:13]} 1-0


[Site "https://www.chess.com"]

[Event "Titled Tuesday Blitz January 17 Late 2023"]
[White "Martinez Alcantara, Jose Eduardo"]
[Black "Besedes, Danilo"]
[WhiteFideId "3805662"]
[BlackFideId "946796"]
[WhiteElo "2619"]
[BlackElo "2297"]
[Result "1-0"]
[Round "02"]
[TimeControl "180+2"]
[Date "2023.01.17"]
[WhiteClock "0:01:56"]
[BlackClock "0:02:03"]

1. e4 {[%clk 0:03:00]}  e6 {[%clk 0:02:57]} 2. d4 {[%clk 0:02:56]}  d5 {[%clk 0:02:57]} 3. exd5 {[%clk 0:02:55]}  exd5 {[%clk 0:02:57]} 4. Nf3 {[%clk 0:02:54]}  c6 {[%clk 0:02:55]} 5. c4 {[%clk 0:02:52]}  Nf6 {[%clk 0:02:55]} 6. Nc3 {[%clk 0:02:49]}  Be7 {[%clk 0:02:55]} 7. h3 {[%clk 0:02:48]}  O-O {[%clk 0:02:54]} 8. Bd3 {[%clk 0:02:48]}  Re8 {[%clk 0:02:55]} 9. O-O {[%clk 0:02:48]}  h6 {[%clk 0:02:53]} 10. Qb3 {[%clk 0:02:46]}  Qb6 {[%clk 0:02:43]} 11. c5 {[%clk 0:02:44]}  Qc7 {[%clk 0:02:40]} 12. Ne2 {[%clk 0:02:40]}  Be6 {[%clk 0:02:37]} 13. Bf4 {[%clk 0:02:40]}  Qc8 {[%clk 0:02:37]} 14. Qc2 {[%clk 0:02:38]}  Nbd7 {[%clk 0:02:36]} 15. Rfe1 {[%clk 0:02:36]}  Nf8 {[%clk 0:02:35]} 16. Ne5 {[%clk 0:02:37]}  Bd8 {[%clk 0:02:32]} 17. Bg3 {[%clk 0:02:35]}  Bc7 {[%clk 0:02:32]} 18. Nf4 {[%clk 0:02:35]}  N6d7 {[%clk 0:02:29]} 19. Nxe6 {[%clk 0:02:23]}  Nxe6 {[%clk 0:02:24]} 20. Bh7+ {[%clk 0:02:11]}  Kf8 {[%clk 0:02:23]} 21. Nxf7 {[%clk 0:02:06]}  Kxf7 {[%clk 0:02:15]} 22. Qg6+ {[%clk 0:02:01]}  Kf8 {[%clk 0:02:15]} 23. Rxe6 {[%clk 0:01:57]}  Rxe6 {[%clk 0:02:04]} 24. Qxe6 {[%clk 0:01:58]}  Bxg3 {[%clk 0:02:03]} 25. Qg8+ {[%clk 0:01:56]} 1-0


[Site "https://www.chess.com"]

[Event "Titled Tuesday Blitz January 17 Late 2023"]
[White "Forgacs, Attila Jr."]
[Black "Kravtsiv, Martyn"]
[WhiteFideId "773654"]
[BlackFideId "14113147"]
[WhiteElo "2264"]
[BlackElo "2598"]
[Result "0-1"]
[Round "02"]
[TimeControl "180+2"]
[Date "2023.01.17"]
[WhiteClock "0:00:03"]
[BlackClock "0:00:44"]

1. e4 {[%clk 0:03:00]}  e5 {[%clk 0:02:58]} 2. Nf3 {[%clk 0:03:00]}  Nc6 {[%clk 0:02:58]} 3. Bb5 {[%clk 0:03:00]}  a6 {[%clk 0:02:58]} 4. Ba4 {[%clk 0:03:01]}  Nf6 {[%clk 0:02:58]} 5. O-O {[%clk 0:03:01]}  Be7 {[%clk 0:02:58]} 6. Re1 {[%clk 0:03:02]}  b5 {[%clk 0:02:58]} 7. Bb3 {[%clk 0:03:03]}  O-O {[%clk 0:02:58]} 8. a4 {[%clk 0:03:03]}  b4 {[%clk 0:02:58]} 9. d3 {[%clk 0:03:04]}  d6 {[%clk 0:02:58]} 10. Nbd2 {[%clk 0:03:04]}  Na5 {[%clk 0:02:58]} 11. Ba2 {[%clk 0:03:03]}  c5 {[%clk 0:02:57]} 12. Nc4 {[%clk 0:02:59]}  Nc6 {[%clk 0:02:55]} 13. h3 {[%clk 0:02:55]}  Rb8 {[%clk 0:02:54]} 14. Bb3 {[%clk 0:02:53]}  Be6 {[%clk 0:02:53]} 15. Bg5 {[%clk 0:02:45]}  h6 {[%clk 0:02:50]} 16. Bh4 {[%clk 0:02:44]}  Nd7 {[%clk 0:02:22]} 17. Bxe7 {[%clk 0:02:37]}  Qxe7 {[%clk 0:02:23]} 18. Qd2 {[%clk 0:02:32]}  Kh7 {[%clk 0:02:21]} 19. Ne3 {[%clk 0:01:43]}  g6 {[%clk 0:02:21]} 20. Bd5 {[%clk 0:01:39]}  Nd4 {[%clk 0:02:18]} 21. Nxd4 {[%clk 0:01:22]}  cxd4 {[%clk 0:02:19]} 22. Nc4 {[%clk 0:01:17]}  Bxd5 {[%clk 0:02:17]} 23. exd5 {[%clk 0:01:18]}  g5 {[%clk 0:02:17]} 24. c3 {[%clk 0:01:07]}  Nc5 {[%clk 0:01:58]} 25. cxd4 {[%clk 0:00:28]}  Nb3 {[%clk 0:01:57]} 26. Qe3 {[%clk 0:00:27]}  Nxa1 {[%clk 0:01:54]} 27. Rxa1 {[%clk 0:00:27]}  f6 {[%clk 0:01:48]} 28. dxe5 {[%clk 0:00:23]}  fxe5 {[%clk 0:01:47]} 29. Qe4+ {[%clk 0:00:21]}  Kg7 {[%clk 0:01:42]} 30. Ne3 {[%clk 0:00:21]}  Qd7 {[%clk 0:01:42]} 31. g4 {[%clk 0:00:20]}  Rf4 {[%clk 0:01:40]} 32. Nf5+ {[%clk 0:00:19]}  Kf6 {[%clk 0:01:40]} 33. Qe3 {[%clk 0:00:18]}  h5 {[%clk 0:01:39]} 34. f3 {[%clk 0:00:17]}  hxg4 {[%clk 0:01:21]} 35. hxg4 {[%clk 0:00:18]}  Qb7 {[%clk 0:01:21]} 36. d4 {[%clk 0:00:14]}  Qxd5 {[%clk 0:01:16]} 37. dxe5+ {[%clk 0:00:14]}  Qxe5 {[%clk 0:01:16]} 38. Qa7 {[%clk 0:00:13]}  Rxf5 {[%clk 0:01:15]} 39. Qxb8 {[%clk 0:00:08]}  Qg3+ {[%clk 0:01:15]} 40. Kh1 {[%clk 0:00:07]}  Qxf3+ {[%clk 0:01:15]} 41. Kg1 {[%clk 0:00:07]}  Qxg4+ {[%clk 0:01:15]} 42. Kh1 {[%clk 0:00:07]}  Qh3+ {[%clk 0:01:14]} 43. Kg1 {[%clk 0:00:07]}  Qe3+ {[%clk 0:01:13]} 44. Kh1 {[%clk 0:00:08]}  Qe4+ {[%clk 0:01:10]} 45. Kg1 {[%clk 0:00:08]}  Qd4+ {[%clk 0:01:10]} 46. Kh1 {[%clk 0:00:09]}  Qd5+ {[%clk 0:01:09]} 47. Kg1 {[%clk 0:00:09]}  Rf4 {[%clk 0:01:04]} 48. Qf8+ {[%clk 0:00:09]}  Kg6 {[%clk 0:01:04]} 49. Qe8+ {[%clk 0:00:07]}  Qf7 {[%clk 0:01:03]} 50. Qxf7+ {[%clk 0:00:05]}  Kxf7 {[%clk 0:01:01]} 51. Rd1 {[%clk 0:00:06]}  Ke6 {[%clk 0:01:01]} 52. Kg2 {[%clk 0:00:06]}  Rc4 {[%clk 0:00:57]} 53. Rd2 {[%clk 0:00:05]}  a5 {[%clk 0:00:56]} 54. Kf3 {[%clk 0:00:05]}  d5 {[%clk 0:00:55]} 55. Re2+ {[%clk 0:00:04]}  Kd6 {[%clk 0:00:55]} 56. Re8 {[%clk 0:00:04]}  Rc2 {[%clk 0:00:53]} 57. Rd8+ {[%clk 0:00:05]}  Ke5 {[%clk 0:00:52]} 58. Ra8 {[%clk 0:00:04]}  Rxb2 {[%clk 0:00:52]} 59. Rxa5 {[%clk 0:00:04]}  Ra2 {[%clk 0:00:52]} 60. Ra8 {[%clk 0:00:04]}  Kd4 {[%clk 0:00:49]} 61. Rg8 {[%clk 0:00:03]}  b3 {[%clk 0:00:44]} 0-1


[Site "https://www.chess.com"]

[Event "Titled Tuesday Blitz January 17 Late 2023"]
[White "Davidson, Kevin"]
[Black "Bikuzhin, Maksim"]
[WhiteFideId "2056810"]
[BlackFideId "24128015"]
[WhiteElo "2154"]
[BlackElo "2279"]
[Result "0-1"]
[Round "02"]
[TimeControl "180+2"]
[Date "2023.01.17"]
[WhiteClock "0:00:01"]
[BlackClock "0:00:42"]

1. e4 {[%clk 0:03:00]}  c5 {[%clk 0:02:59]} 2. Nf3 {[%clk 0:03:00]}  e6 {[%clk 0:02:59]} 3. d4 {[%clk 0:03:00]}  cxd4 {[%clk 0:02:59]} 4. Nxd4 {[%clk 0:03:01]}  Nf6 {[%clk 0:02:57]} 5. Nc3 {[%clk 0:03:01]}  d6 {[%clk 0:02:57]} 6. Be3 {[%clk 0:02:55]}  a6 {[%clk 0:02:57]} 7. g4 {[%clk 0:02:54]}  h6 {[%clk 0:02:51]} 8. f3 {[%clk 0:02:43]}  b5 {[%clk 0:02:49]} 9. Qd2 {[%clk 0:02:41]}  Bb7 {[%clk 0:02:49]} 10. O-O-O {[%clk 0:02:40]}  Nbd7 {[%clk 0:02:47]} 11. Bd3 {[%clk 0:02:35]}  Rc8 {[%clk 0:02:45]} 12. h4 {[%clk 0:02:34]}  b4 {[%clk 0:02:34]} 13. Na4 {[%clk 0:02:20]}  d5 {[%clk 0:02:31]} 14. exd5 {[%clk 0:02:07]}  Nxd5 {[%clk 0:02:31]} 15. g5 {[%clk 0:01:50]}  Be7 {[%clk 0:02:10]} 16. g6 {[%clk 0:01:46]}  Bf6 {[%clk 0:02:06]} 17. Rhg1 {[%clk 0:01:18]}  Ne5 {[%clk 0:02:01]} 18. gxf7+ {[%clk 0:01:15]}  Kxf7 {[%clk 0:02:02]} 19. f4 {[%clk 0:00:33]}  Nxd3+ {[%clk 0:02:01]} 20. Qxd3 {[%clk 0:00:34]}  Re8 {[%clk 0:01:53]} 21. Kb1 {[%clk 0:00:22]}  Qa5 {[%clk 0:01:44]} 22. b3 {[%clk 0:00:20]}  Nxe3 {[%clk 0:01:35]} 23. Qxe3 {[%clk 0:00:19]}  Qc7 {[%clk 0:01:30]} 24. Rd2 {[%clk 0:00:14]}  Bd5 {[%clk 0:01:26]} 25. Nf3 {[%clk 0:00:13]}  Bxf3 {[%clk 0:01:13]} 26. Qxf3 {[%clk 0:00:12]}  Red8 {[%clk 0:01:14]} 27. Rdg2 {[%clk 0:00:09]}  Qd6 {[%clk 0:01:04]} 28. f5 {[%clk 0:00:07]}  Qd4 {[%clk 0:00:58]} 29. fxe6+ {[%clk 0:00:06]}  Kf8 {[%clk 0:00:56]} 30. c3 {[%clk 0:00:05]}  bxc3 {[%clk 0:00:55]} 31. Kc2 {[%clk 0:00:02]}  Rc7 {[%clk 0:00:48]} 32. Rxg7 {[%clk 0:00:02]}  Qd2+ {[%clk 0:00:42]} 33. Kb1 {[%clk 0:00:01]}  c2# {[%clk 0:00:42]} 0-1


[Site "https://www.chess.com"]

[Event "Titled Tuesday Blitz January 17 Late 2023"]
[White "Semenenko, Dmytry"]
[Black "Urazayev, Arystanbek"]
[WhiteFideId "14118645"]
[BlackFideId "13709810"]
[WhiteElo "2113"]
[BlackElo "2460"]
[Result "0-1"]
[Round "02"]
[TimeControl "180+2"]
[Date "2023.01.17"]
[WhiteClock "0:01:26"]
[BlackClock "0:01:47"]

1. Nf3 {[%clk 0:03:00]}  d5 {[%clk 0:03:00]} 2. c4 {[%clk 0:02:59]}  d4 {[%clk 0:02:58]} 3. e3 {[%clk 0:03:00]}  Nc6 {[%clk 0:02:58]} 4. b4 {[%clk 0:03:00]}  dxe3 {[%clk 0:02:56]} 5. fxe3 {[%clk 0:03:00]}  Nxb4 {[%clk 0:02:56]} 6. d4 {[%clk 0:03:00]}  e5 {[%clk 0:02:53]} 7. a3 {[%clk 0:02:59]}  Nc6 {[%clk 0:02:53]} 8. Be2 {[%clk 0:02:56]}  Bg4 {[%clk 0:02:51]} 9. d5 {[%clk 0:02:50]}  e4 {[%clk 0:02:33]} 10. dxc6 {[%clk 0:02:43]}  exf3 {[%clk 0:02:33]} 11. Bxf3 {[%clk 0:02:32]}  Qxd1+ {[%clk 0:02:29]} 12. Bxd1 {[%clk 0:02:31]}  Bxd1 {[%clk 0:02:29]} 13. cxb7 {[%clk 0:02:30]}  Rd8 {[%clk 0:02:27]} 14. b8=Q {[%clk 0:02:26]}  Rxb8 {[%clk 0:02:26]} 15. Kxd1 {[%clk 0:02:26]}  Nf6 {[%clk 0:02:26]} 16. Nc3 {[%clk 0:02:24]}  Bc5 {[%clk 0:02:20]} 17. Kc2 {[%clk 0:02:15]}  O-O {[%clk 0:02:19]} 18. Bd2 {[%clk 0:02:11]}  Ng4 {[%clk 0:02:17]} 19. Rhe1 {[%clk 0:02:02]}  Ne5 {[%clk 0:02:17]} 20. Na4 {[%clk 0:01:58]}  Be7 {[%clk 0:02:14]} 21. c5 {[%clk 0:01:54]}  Nd7 {[%clk 0:01:56]} 22. Bb4 {[%clk 0:01:49]}  a5 {[%clk 0:01:56]} 23. Bxa5 {[%clk 0:01:49]}  Ra8 {[%clk 0:01:57]} 24. c6 {[%clk 0:01:45]}  Rxa5 {[%clk 0:01:52]} 25. cxd7 {[%clk 0:01:44]}  Rxa4 {[%clk 0:01:53]} 26. Kb3 {[%clk 0:01:43]}  Ra6 {[%clk 0:01:51]} 27. Red1 {[%clk 0:01:43]}  Rd8 {[%clk 0:01:50]} 28. Rac1 {[%clk 0:01:43]}  Bd6 {[%clk 0:01:49]} 29. e4 {[%clk 0:01:41]}  f6 {[%clk 0:01:50]} 30. Rd5 {[%clk 0:01:36]}  Rxa3+ {[%clk 0:01:49]} 31. Kb2 {[%clk 0:01:35]}  Raa8 {[%clk 0:01:46]} 32. Rb5 {[%clk 0:01:28]}  Ba3+ {[%clk 0:01:46]} 33. Kb1 {[%clk 0:01:26]}  Bxc1 {[%clk 0:01:47]} 34. Kxc1 {[%clk 0:01:26]}  Rxd7 {[%clk 0:01:47]} 0-1


[Site "https://www.chess.com"]

[Event "Titled Tuesday Blitz January 17 Late 2023"]
[White "Iniyan, P"]
[Black "Gutkin, Ilya"]
[WhiteFideId "25002767"]
[BlackFideId "16203470"]
[WhiteElo "2525"]
[BlackElo "2273"]
[Result "1-0"]
[Round "02"]
[TimeControl "180+2"]
[Date "2023.01.17"]
[WhiteClock "0:01:00"]
[BlackClock "0:00:02"]

1. b3 {[%clk 0:03:00]}  e5 {[%clk 0:02:59]} 2. Bb2 {[%clk 0:03:01]}  Nc6 {[%clk 0:02:59]} 3. c4 {[%clk 0:03:01]}  Nf6 {[%clk 0:02:59]} 4. e3 {[%clk 0:03:01]}  g6 {[%clk 0:02:54]} 5. Nc3 {[%clk 0:03:00]}  Bg7 {[%clk 0:02:54]} 6. h4 {[%clk 0:03:00]}  h5 {[%clk 0:02:53]} 7. Nf3 {[%clk 0:02:59]}  O-O {[%clk 0:02:44]} 8. Ng5 {[%clk 0:02:59]}  d5 {[%clk 0:02:38]} 9. cxd5 {[%clk 0:02:50]}  Nxd5 {[%clk 0:02:39]} 10. Bc4 {[%clk 0:02:50]}  Nb6 {[%clk 0:02:33]} 11. Be2 {[%clk 0:02:47]}  Re8 {[%clk 0:02:26]} 12. a3 {[%clk 0:02:44]}  Nd4 {[%clk 0:02:02]} 13. Bxh5 {[%clk 0:02:19]}  gxh5 {[%clk 0:01:55]} 14. Qxh5 {[%clk 0:02:20]}  Qf6 {[%clk 0:01:35]} 15. exd4 {[%clk 0:02:09]}  exd4+ {[%clk 0:01:32]} 16. Nce4 {[%clk 0:02:09]}  Qf5 {[%clk 0:01:27]} 17. d3 {[%clk 0:02:02]}  Nd5 {[%clk 0:01:13]} 18. g4 {[%clk 0:02:02]}  Nf4 {[%clk 0:00:52]} 19. gxf5 {[%clk 0:01:59]}  Nxh5 {[%clk 0:00:52]} 20. Rg1 {[%clk 0:01:43]}  Bxf5 {[%clk 0:00:44]} 21. O-O-O {[%clk 0:01:40]}  Rad8 {[%clk 0:00:37]} 22. Nf3 {[%clk 0:01:36]}  Bg6 {[%clk 0:00:16]} 23. Kc2 {[%clk 0:01:30]}  Kh8 {[%clk 0:00:13]} 24. Rg5 {[%clk 0:01:29]}  Nf4 {[%clk 0:00:07]} 25. h5 {[%clk 0:01:29]}  Bh7 {[%clk 0:00:04]} 26. Rxg7 {[%clk 0:01:16]}  Kxg7 {[%clk 0:00:04]} 27. Nxd4 {[%clk 0:01:14]}  f6 {[%clk 0:00:03]} 28. Rg1+ {[%clk 0:01:05]}  Kf7 {[%clk 0:00:03]} 29. f3 {[%clk 0:01:02]}  Bxe4 {[%clk 0:00:03]} 30. fxe4 {[%clk 0:01:03]}  Rg8 {[%clk 0:00:04]} 31. Rf1 {[%clk 0:01:02]}  Nxh5 {[%clk 0:00:04]} 32. Nf3 {[%clk 0:00:59]}  Rg2+ {[%clk 0:00:04]} 33. Kb1 {[%clk 0:00:59]}  Rxd3 {[%clk 0:00:03]} 34. Ne5+ {[%clk 0:00:59]}  Ke6 {[%clk 0:00:03]} 35. Nxd3 {[%clk 0:01:00]}  Ng3 {[%clk 0:00:02]} 36. Nf4+ {[%clk 0:01:00]} 1-0


[Site "https://www.chess.com"]

[Event "Titled Tuesday Blitz January 17 Late 2023"]
[White "Sai Krishna G V"]
[Black "Stachanczyk, Jacek"]
[WhiteFideId "5028280"]
[BlackFideId "1116657"]
[WhiteElo "2384"]
[BlackElo "2147"]
[Result "1-0"]
[Round "02"]
[TimeControl "180+2"]
[Date "2023.01.17"]
[WhiteClock "0:02:35"]
[BlackClock "0:01:37"]

1. e4 {[%clk 0:03:00]}  c5 {[%clk 0:02:54]} 2. Nf3 {[%clk 0:03:00]}  d6 {[%clk 0:02:53]} 3. d4 {[%clk 0:03:00]}  cxd4 {[%clk 0:02:54]} 4. Nxd4 {[%clk 0:03:01]}  Nf6 {[%clk 0:02:54]} 5. Nc3 {[%clk 0:03:02]}  Nc6 {[%clk 0:02:54]} 6. Bg5 {[%clk 0:03:02]}  e6 {[%clk 0:02:53]} 7. Qd2 {[%clk 0:03:02]}  a6 {[%clk 0:02:52]} 8. O-O-O {[%clk 0:03:02]}  Bd7 {[%clk 0:02:52]} 9. f3 {[%clk 0:03:02]}  Be7 {[%clk 0:02:46]} 10. g4 {[%clk 0:03:00]}  Rc8 {[%clk 0:02:39]} 11. Be3 {[%clk 0:02:53]}  b5 {[%clk 0:02:36]} 12. g5 {[%clk 0:02:46]}  Nh5 {[%clk 0:02:35]} 13. f4 {[%clk 0:02:46]}  Nxd4 {[%clk 0:02:03]} 14. Qxd4 {[%clk 0:02:47]}  O-O {[%clk 0:01:51]} 15. Be2 {[%clk 0:02:44]}  Nxf4 {[%clk 0:01:51]} 16. Bxf4 {[%clk 0:02:40]}  e5 {[%clk 0:01:51]} 17. Bxe5 {[%clk 0:02:36]}  Bxg5+ {[%clk 0:01:39]} 18. Kb1 {[%clk 0:02:34]}  dxe5 {[%clk 0:01:37]} 19. Qxd7 {[%clk 0:02:35]} 1-0


[Site "https://www.chess.com"]